Cogmind - Beta 16 @@@ ROGUE MODE // 2025.12.30 @ 11:09:50 Player: Spoodle Result: Destroyed by D-53 Grenadier with Mini Grenade Launcher Performance ------------- Evolutions (0) 0 Regions Visited (2) 400 Robots Destroyed (16) 80 Value Destroyed (436) 436 Prototype IDs (2) 40 Alien Tech Used (0) 0 Bonus (0) 0 TOTAL SCORE: 956 Bonus ------- None Cogmind --------- Core Integrity 0/250 Matter 284/300 Energy 65/100 System Corruption 4% Temperature Cool (0) Movement Treading (160) Location -10/Mines Parts ------- > --- POWER (1) -------- (None) > --- PROPULSION (2) --- Light Treads Light Treads > --- UTILITY (2) ------ (None) > --- WEAPON (2) ------- (None) > --- INVENTORY (5) ---- Improved Ion Engine Light Treads Armored Wheel Particle Gun Grenade Launcher Peak State ------------ > --- POWER ------------ Improved Ion Engine > --- PROPULSION ------- Light Treads Armored Wheel > --- UTILITY ---------- Large Storage Unit Seismic Detector > --- WEAPON ----------- Particle Gun Assault Rifle > --- INVENTORY -------- Improved Ion Engine Improved Ion Engine Light Treads Light Treads Light Treads Armored Wheel Armored Wheel Armored Wheel Heat Sink Seismic Detector Particle Gun Grenade Launcher Grenade Launcher Mining Laser [Rating: 12] Favorites ----------- Power Improved Ion Engine Engine Improved Ion Engine Propulsion Light Treads Treads Light Treads Leg Aluminum Leg Wheel Armored Wheel Utility Large Storage Unit Device Seismic Detector Storage Large Storage Unit Weapon Assault Rifle Energy Gun Particle Gun Ballistic Gun Assault Rifle Launcher Grenade Launcher Build | -11 -10 -10 ------- Run | Yrd Mat Min Slots Evolved . | . . . Power . | . . . Propulsion . | . . . Utility . | . . . Weapon . | . . . Parts Attached 20 | 7 9 4 Power 2 | 1 1 . Engine 2 | 1 1 . Core . | . . . Reactor . | . . . Propulsion 8 | 2 3 3 Treads 4 | . 2 2 Leg 2 | 2 . . Wheel 2 | . 1 1 Hover . | . . . Flight . | . . . Utility 5 | 2 2 1 Device 2 | 1 . 1 Storage 3 | 1 2 . Processor . | . . . Hackware . | . . . Protection . | . . . Artifact . | . . . Weapon 5 | 2 3 . Energy Gun 1 | . 1 . Energy Cannon . | . . . Ballistic Gun 2 | 2 . . Ballistic Cannon . | . . . Launcher 2 | . 2 . Special Weapon . | . . . Impact Weapon . | . . . Slashing Weapon . | . . . Piercing Weapon . | . . . Special Melee Weapon . | . . . Unidentified Prototypes . | . . . Parts Lost 7 | . 2 5 Power 1 | . . 1 Propulsion 1 | . . 1 Utility 2 | . . 2 Weapon 3 | . 2 1 Highest Loss Streak 4 | . 1 4 To Critical Strikes . | . . . Average Backups 12 | 3 13 13 Power 1 | . 1 1 Propulsion 4 | 1 4 4 Utility 2 | . 2 2 Weapon 3 | . 4 4 Tool/Special . | . . . Unused Backups 15 | . 4 11 Power 4 | . 2 2 Propulsion 3 | . . 3 Utility 2 | . . 2 Weapon 6 | . 2 4 Tool/Special . | . . . Average Slot Usage (%) 99 | . 100 99 Engine 13 | . 14 13 Treads 13 | . 11 14 Leg 1 | . 4 . Wheel 12 | . 11 13 Device 13 | . 14 13 Storage 13 | . 14 13 Energy Gun 7 | . . 13 Ballistic Gun 19 | . 26 13 Peak Build Rating 12 | 7 12 12 Average Rating 10 | 5 10 11 On Entrance 6 | . 7 12 Avg Prop Armor Cover (%) 11 | . 10 12 Naked Turns . | . . . Heaviest Build 34 | 15 33 34 Greatest Support 40 | 20 20 40 Greatest Overweight (x) 2 | . 2 2 Average Overweight (x) 1 | . 1 1 Largest Inventory Capacity 15 | 8 15 15 Average Capacity 14 | 7 14 14 Most Carried 15 | 5 15 15 Average Carried 13 | 4 13 14 Final Capacity 15 | 8 15 5 Final Carried 15 | 5 15 5 Class Distribution -------------------- 100% | Mutant Dominant Class ---------------- Mutant | -10/Materials Mutant | -10/Mines Resources | -11 -10 -10 ----------- Run | Yrd Mat Min Matter Collected 791 | 275 380 136 Remotely . | . . . Salvage Created 594 | 147 394 53 Parts 27 | 9 15 3 Haulers Intercepted 1 | . 1 . Recyclers Shooed 1 | . 1 . Parts Field Recycled . | . . . Retrieved Matter . | . . . Parts Self-Destructed . | . . . Prevented . | . . . Parts Restored . | . . . Kills | -11 -10 -10 ------- Run | Yrd Mat Min Combat Hostiles Destroyed 11 | . 9 2 Guns 7 | . 6 1 AOE 4 | . 3 1 Classes Destroyed 6 | 2 3 1 Builder 1 | . 1 . Tunneler 3 | 3 . . Hauler 1 | . 1 . Recycler 1 | 1 . . Grunt 10 | . 9 1 Assembled 1 | . . 1 Best Kill Streak 4 | 2 4 1 Combat Bots Only 3 | . 3 1 Max Kills in Single Turn 2 | 1 2 1 Gunslinging . | . . . Exploded 2 | . 2 1 Melee . | . . . Uniques/NPCs Destroyed . | . . . Combat | -11 -10 -10 -------- Run | Yrd Mat Min Hostile Shots Fired 72 | . 50 22 Missed 12 | . 10 2 Hits 60 | . 40 20 Melee 4 | . . 4 Projectile 56 | . 40 16 AOE 15 | . . 15 Critical Strikes 1 | . . 1 Damage Taken 1295 | . 500 795 Core 254 | . 56 198 Absorbed by Shields . | . . . Core Remaining (%) 100 | 100 . . Volleys Fired 52 | 6 37 9 Largest 2 | 2 2 2 Hottest 85 | 40 85 85 Shots Fired 96 | 12 70 14 Gun 88 | 12 65 11 Cannon . | . . . Launcher 8 | . 5 3 Special . | . . . Kinetic 81 | 12 63 6 Thermal 7 | . 2 5 Explosive 8 | . 5 3 Electromagnetic . | . . . Robot Hit Streak 9 | 5 9 3 Robot Miss Streak 3 | 2 3 2 Penetration Max . | . . . Secondary Targets . | . . . Shots Hit Robots 62 | 8 48 6 Core Hits 38 | 5 27 6 Critical Kills . | . . . Critical Parts Destroyed . | . . . Critical Strikes . | . . . Melee Attacks . | . . . Impact . | . . . Slashing . | . . . Piercing . | . . . Sneak Attacks . | . . . Combat Hostiles . | . . . Follow-up Attacks . | . . . Damage Inflicted 1191 | 115 896 180 Guns 778 | 115 591 72 Cannons . | . . . Explosions 413 | . 305 108 Melee . | . . . Ramming . | . . . Kinetic 718 | 115 577 26 Thermal 60 | . 14 46 Explosive 413 | . 305 108 Electromagnetic . | . . . Impact . | . . . Slashing . | . . . Piercing . | . . . Highest Corruption 4 | . 4 4 Average Corruption 3 | . 3 4 Corruption Purged . | . . . Corruption Blocked . | . . . Effects 27 | . 9 18 Message Errors 7 | . 4 3 Matter Fused 5 | . . 5 Heat Flow Errors 5 | . 1 4 Energy Discharges 3 | . 2 1 Data Loss (minor) 2 | . 1 1 Data Loss (major) 2 | . . 2 Misfires 1 | . 1 . Alerts 2 | . . 2 Overload Shots . | . . . Overflow Damage . | . . . Projectiles . | . . . Explosions . | . . . Melee . | . . . Knockbacks . | . . . Impact . | . . . Kinetic . | . . . Secondary . | . . . Self-Inflicted Damage . | . . . Shots . | . . . Rammed . | . . . Targets Rammed . | . . . Kicked . | . . . Crushed . | . . . Highest Temperature 259 | . 91 259 Average Temperature 58 | . 16 91 Received Heat Transfer 330 | . 285 45 Siege Activations . | . . . Martial Activations . | . . . Shielding Activations . | . . . Robots Disrupted . | . . . Combat Hostiles . | . . . Robots Corrupted . | . . . Combat Hostiles . | . . . Parts Fried . | . . . Impact Corruptions . | . . . Robots Melted . | . . . Combat Hostiles . | . . . Parts Melted . | . . . Heat Transferred 148 | . 37 111 Parts Sabotaged . | . . . Parts Stolen . | . . . Parts Stripped . | . . . Power Chain Reactions . | . . . Alert | -11 -10 -10 ------- Run | Yrd Mat Min Maximum Alert Level . | . . . Low Security (%) 100 | 100 100 100 Level 1 . | . . . Level 2 . | . . . Level 3 . | . . . Level 4 . | . . . Level 5 . | . . . High Security . | . . . Max Security . | . . . Peak Influence 158 | 5 158 48 Initial 48 | . . 48 Average 35 | . 78 4 Influence Increases 453 | 20 376 57 Destroy 0b10 Robot/C 200 | . 180 20 Destroy 0b10 Robot/NC 30 | 20 10 . Destroy Leader 52 | . 42 10 Successful Hack 35 | . 35 . Select Force Hacks 60 | . 60 . Disable Machine 15 | . 15 . Destroy Structure 61 | . 34 27 Influence Decreases 453 | 20 251 182 Entered New Map 77 | . . 77 Time Decay 350 | 20 231 99 Lost Part 26 | . 20 6 Squads Dispatched 2 | . 2 . Investigation 2 | . 2 . Extermination . | . . . Reinforcement . | . . . Assault . | . . . Garrison . | . . . Intercept . | . . . Searches Triggered . | . . . Construction Impeded . | . . . Haulers Reinforced . | . . . Active Scanning Responses . | . . . Cargo Convoy Interrupts . | . . . Stealth | -11 -10 -10 --------- Run | Yrd Mat Min Distress Signals 2 | . 1 1 Communications Jammed . | . . . Distress Signals . | . . . Times Spotted 21 | . 13 8 Peak Tracking Total 4 | . 4 2 Tactical Retreats . | . . . Traps | -11 -10 -10 ------- Run | Yrd Mat Min Traps Triggered 2 | . 2 . Indirectly . | . . . Trap Hack Attempts . | . . . Triggered . | . . . Disarmed . | . . . Reprogrammed . | . . . Reused . | . . . Traps Extracted . | . . . Installed . | . . . Triggered . | . . . Machines | -11 -10 -10 ---------- Run | Yrd Mat Min Machines Disabled 1 | . 1 . Max in Single Turn 1 | . 1 . Machines Repaired . | . . . Machines Dismantled . | . . . Machines Sabotaged . | . . . Overloaded Fab Kills . | . . . Hacking | -11 -10 -10 --------- Run | Yrd Mat Min Machines Accessed 8 | . 8 . Terminals 6 | . 6 . Fabricators . | . . . Repair Stations . | . . . Recycling Units 2 | . 2 . Scanalyzers . | . . . Garrison Access . | . . . Total Hacks 21 | . 21 . Successful 13 | . 13 . Failed 8 | . 8 . Catastrophic . | . . . Database Lockouts . | . . . Manual 16 | . 16 . Terminals 19 | . 19 . Fabricators . | . . . Repair Stations . | . . . Recycling Units 2 | . 2 . Scanalyzers . | . . . Garrison Access . | . . . Terminal Hacks 3 | . 3 . Robot Analysis 2 | . 2 . Prototype ID Bank 1 | . 1 . Fabricator Hacks . | . . . Repair Station Hacks . | . . . Recycling Unit Hacks . | . . . Scanalyzer . | . . . Garrison Access Hacks . | . . . Unauthorized Hacks 10 | . 10 . Terminals 8 | . 8 . Botnet 2 | . 2 . Operators 1 | . 1 . Skim 5 | . 5 . Fabricators . | . . . Repair Stations . | . . . Recycling Units 2 | . 2 . Tunnel 2 | . 2 . Scanalyzers . | . . . Garrison Access . | . . . Data Cores Recovered . | . . . Used . | . . . Hacking Detections 6 | . 6 . Full Trace Events 1 | . 1 . Feedback Events . | . . . Feedback Blocked . | . . . Robot Schematics Acquired . | . . . Robots Built . | . . . Authchips . | . . . Time . | . . . Total Robot Build Rating . | . . . Part Schematics Acquired . | . . . Parts Built . | . . . Authchips . | . . . Time . | . . . Total Part Build Rating . | . . . Part Studies Acquired . | . . . Parts Repaired . | . . . Time . | . . . Parts Recycled . | . . . Recycled Matter . | . . . Retrieved Matter . | . . . Retrieved Components . | . . . Parts Scanalyzed . | . . . Part Schematics Acquired . | . . . Parts Damaged . | . . . Bothacking | -11 -10 -10 ------------ Run | Yrd Mat Min Used RIF Installer . | . . . Robots Hacked . | . . . Non-combat . | . . . Combat . | . . . Robot Hacks Applied . | . . . Relay Couplers Released . | . . . Fabnet Peak Effective % . | . . . Robots Rewired . | . . . Allies Hacked . | . . . Hacks Repelled . | . . . Allies | -11 -10 -10 -------- Run | Yrd Mat Min Total Allies . | . . . Largest Group . | . . . Highest-Rated Group . | . . . Highest-Rated Ally . | . . . Total Orders . | . . . Ally Attacks . | . . . Total Damage . | . . . Kills . | . . . Allies Corrupted . | . . . Allies Melted . | . . . Intel | -11 -10 -10 ------- Run | Yrd Mat Min Active Infowar (turns) 1394 | 56 703 635 Seismic 1394 | 56 703 635 Robot Analysis Total 2 | . 2 . Derelict Logs Recovered 1 | . . 1 Drone Launches . | . . . Drone Recoveries . | . . . Exploration | -11 -10 -10 ------------- Run | Yrd Mat Min Turns Passed 1673 | 116 703 854 Spaces Moved 840 | 73 418 349 Core 9 | 9 . . Treads 40 | . 35 5 Legs 140 | 64 76 . Wheels 651 | . 307 344 Hover . | . . . Flight . | . . . Fastest Speed 50 | 50 120 105 Average Speed 124 | 111 130 120 Slowest Speed 240 | 120 240 160 Overloaded Moves . | . . . Propulsion Burnouts . | . . . Robots Hopped . | . . . Potential Cave-ins . | . . . Cave-ins Triggered . | . . . Exploration Rate (%) 49 | 4 92 52 Regions Visited 2 Branch Regions 1 Pre-discovered Areas 3 | . 3 . Known Exits Taken . | . . . Unknown Exits Taken 2 | 1 1 . Scrap Searched . | . . . Spaces Dug 32 | . 10 22 Terrain Destroyed 60 | . 30 30 Melee . | . . . Projectile . | . . . AOE 60 | . 30 30 Terrain Rammed . | . . . Walls Destroyed . | . . . Machines Disabled . | . . . Actions | -11 -10 -10 --------- Run | Yrd Mat Min Total 1370 | 93 509 768 Wait 409 | 1 13 395 Move 838 | 72 417 349 Hop . | . . . Pick Up 29 | 7 20 2 Fast Attach 6 | 5 . 1 Attach 6 | 2 2 2 Detach . | . . . Swap 16 | . 10 6 Drop 14 | . 10 4 Fire 52 | 6 37 9 Melee . | . . . Ram . | . . . Kick . | . . . Crush . | . . . Escape Stasis . | . . . Rewire . | . . . Trap . | . . . Miscellaneous . | . . . Route ------- -11/Scrapyard -10/Materials (discovered 6 exits: [*Mat x3] / [*Min x2] / [*Sub]) -10/Mines History --------- Turn | Location | Event 2 | -11/Scrapyard | Met Revision 17 23 | -11/Scrapyard | Discovered new exit (range 15) 117 | -11/Scrapyard | Entered Materials 172 | -10/Materials | Discovered new exit (range 14) 307 | -10/Materials | Build established: Mutant 372 | -10/Materials | Discovered new exit (range 14) 517 | -10/Materials | Discovered new exit (range 3) 537 | -10/Materials | Learned location of Mines (-10) 609 | -10/Materials | Loaded intel: 1 repair station location 670 | -10/Materials | Loaded intel: 8 terminal locations 699 | -10/Materials | Discovered new exit (range 8) 721 | -10/Materials | Learned 4 Recycling zone layouts 747 | -10/Materials | Discovered new exit (range 9) 760 | -10/Materials | Learned 4 Subcaves zone layouts 791 | -10/Materials | Learned location of 2 exits from Subcaves 793 | -10/Materials | Discovered new exit (range 11) 820 | -10/Materials | Entered Mines 821 | -10/Mines | Met a Derelict testing a Signal Generator 831 | -10/Mines | Found Signal Generator 874 | -10/Mines | Assembled infested the area 1463 | -10/Mines | Learned Materials stockpile data 1664 | -10/Mines | Core integrity fell below 50% 1673 | -10/Mines | Core integrity fell below 20% 1674 | -10/Mines | Destroyed by D-53 Grenadier with Mini Grenade Launcher Last Messages --------------- 01492_ G-34 Mercenary destroyed. 01498_ G-47 Trooper destroyed. 01503_ System corrupted: Heat flow error (+127). 01506_ Acquired 37 matter. 01514_ Acquired Particle Gun. 01524_ System corrupted: Energy discharge (-103). 01537_ K-01 Serf collects debris. 01554_ System corrupted: Substantial component data lost. 01626_ System corrupted: Matter fused (-7). 01656_ System corrupted: Matter fused (-9). 01661_ Assault Rifle destroyed. 01661_ Imp. Ion Engine destroyed. 01662_ The unstable cave ceiling collapses. 01663_ Heat Sink destroyed. 01664_ Lgt. Treads destroyed. 01666_ Dropped Lrg. Storage Unit. 01667_ Dropped Particle Gun. 01668_ JG-J4H(g) destroyed. 01673_ The unstable cave ceiling collapses. Map ----- +----------------------------------------------------+ | ??????????????????????????# #######?####????????? | | ??????????????????????????# !## ###???????????? | | ?????????????????????????## "!%## #???????????? | | ??######?????????????????# |!! ######??????? | | ??# #?????????????????# #??????? | | ??# #?????????????????## ## #??????? | | ??# #??????????????????###### ###### #??????? | | ??# #???????????????????????########?# ###????? | | ??# #???????????????????????????## ?#=#"###### | | ??# #??#####???????????????????##""###%!%!%=! | | ??### ##?## ##??????????????????# % %######## | | ????#=#?## #??????????????????# #"% #?????? | | ????#!###= ##?????????????????#^ % " % #?????? | | ????#*%=!=* #####????########## # #?????? | | ????######= #????# # ^ #?????? | | ?????????## ##??### ######## "#????? | | ??????????## ##???# #??????###########????? | | ???????????##### #????# ###?????????????????????? | | ????????????# #????# #???????????????????????? | | ????????????# #????# ##??????????????????????? | | ????????????# ######### ###????????????????????? | | ????????????# #?# k ##???????????????????? | | ????????????# #?# ### #???????????????????? | | ??????????### ### ### ##????????????####### | | ?????????## ## ## #????????????# | | ?????????# ## d@ ####?????????# !! | | ?????????# # #?????????# ! | | ?????????## ## #?????????# ! ! | | ??????????## ####### d # #?????????# !!! | | ???????????####?????# # ####?????????# | | ????????????????????# != #????????????####### | | ????????????????????# # #?????????????### | | ????????????????????# ############## | | ????????????????????# | | ????????????????????## % ## | | ?????????????????????# ##################? | | ?????????????????????# #?????????????????? | | ?????????????????????#### ####?????????????????? | | ?????????????????????????####????????????????????? | | ?????????????????????????????????????????????????? | | | | | | | | | | | | | | | | | | | | | +----------------------------------------------------+ Best States ------------- Heat Dissipation 35 Energy Generation 12 Energy Capacity 265 Matter Stores 300 Matter Capacity 300 Sight Range 16 Terrain Scan Density 10 Evasion (%) 55 Recoil Reduction 2 Item Schematics ----------------- None Robot Schematics ------------------ None Fabricated ------------ Nothing Repaired ---------- Nothing Studied --------- None Alien Tech Used ----------------- None Achievements -------------- You Again Challenges ------------ None Game ------ Seed LinkedMissileTendrils Manual? 0 Play Time 00:16:52 Cumulative 599.5 hours Start 2025.12.30 @ 10:45:26 End 2025.12.30 @ 11:09:50 Sessions 3 Manual Loads 0 Difficulty Rogue Special Mode None Game No. 228 Rogue 228 Adventurer 0 Explorer 0 Win Type - Total 24 Types 13/1/5/2/0/1/1/1/0/0 Lore% 92 Gallery% 86 Achievement% 66 Wizard Run 0 Options --------- Layout 2 ASCII 0 Keyboard 1 Movement Arrows Keybinds 0 Fullscreen 1 Font 16/SmallcapsGlow Map View 55x47 Zoom Use 0% Tactical HUD 1 Map Filters NONE Filters NONE Steam 1 RUN: e427ad4b-ae9f-452d-8415-e2047d1aa91f